fUSD/lending_fUSD_20241013
["ID","MTS","AMOUNT","RATE_DAILY","PERIOD"]
[340222259,1728855032960,-509.74872238,0.00010997,2]
[340222260,1728855032969,-501.15641838,0.00010997,2]
[340222261,1728855032979,-306.31127643,0.00010997,2]
[340222262,1728855032988,-309.98893376,0.00010997,2]
[340222263,1728855032997,-508.24366415,0.00010997,2]
[340222264,1728855033006,-512.52823968,0.00010997,2]
[340222265,1728855033015,-500.0,0.00010997,2]
[340222266,1728855033024,-508.78113551,0.00010997,2]
[340222267,1728855033033,-500.0,0.00010997,2]
[340222268,1728855033042,-500.0,0.00010997,2]
[340222269,1728855033051,-500.0,0.00010997,2]
[340222270,1728855033060,-627.09614593,0.00010997,2]
[340222271,1728855033069,-500.0,0.00010997,2]
[340222272,1728855033078,-500.0,0.00010997,2]
[340222273,1728855033087,-447.89364086,0.00010997,2]
[340222274,1728855033096,-500.0,0.00010997,2]
[340222275,1728855033105,-500.0,0.00010997,2]
[340222276,1728855033115,-500.0,0.00010997,2]
[340222277,1728855033126,-625.826288,0.00010998,2]
[340222278,1728855033139,-500.0,0.00010998,2]
[340222279,1728855033147,-500.0,0.00010998,2]
[340222280,1728855033155,-500.0,0.00010998,2]
[340222281,1728855033163,-500.0,0.00010998,2]
[340222282,1728855033171,-500.0,0.00010998,2]
[340222283,1728855033180,-500.0,0.00010998,2]
[340222284,1728855033189,-500.0,0.00010998,2]
[340222285,1728855033198,-500.0,0.00010998,2]
[340222286,1728855033207,-393.19006558,0.00010998,2]
[340222287,1728855033217,-150.0,0.00010998,2]
[340222288,1728855033226,-500.0,0.00010998,2]
[340222289,1728855033235,-500.0,0.00010998,2]
[340222290,1728855033245,-500.0,0.00010998,2]
[340222291,1728855033254,-500.0,0.00010998,2]
[340222292,1728855033264,-500.0,0.00010998,2]
[340222293,1728855033273,-500.0,0.00010998,2]
[340222294,1728855033282,-500.0,0.00010998,2]
[340222295,1728855033291,-500.0,0.00010998,2]
[340222296,1728855033300,-500.0,0.00010998,2]
[340222297,1728855033310,-500.0,0.00010998,2]
[340222298,1728855033320,-500.0,0.00010998,2]
[340222299,1728855033329,-500.0,0.00010998,2]
[340222300,1728855033338,-500.0,0.00010998,2]
[340222301,1728855033347,-500.0,0.00010998,2]
[340222302,1728855033356,-291.68289118,0.00010998,2]
[340222303,1728855033365,-500.0,0.00010998,2]
[340222304,1728855033375,-500.0,0.00010998,2]
[340222305,1728855033384,-500.0,0.00010998,2]
[340222306,1728855033393,-500.0,0.00010998,2]
[340222307,1728855033402,-500.0,0.00010998,2]
[340222308,1728855033411,-512.65875064,0.00010999,2]
[340222309,1728855033420,-505.30877019,0.00010999,2]
[340222310,1728855033429,-503.87974783,0.00010999,2]
[340222311,1728855033439,-505.06657197,0.00010999,2]
[340222312,1728855033448,-506.38016657,0.00010999,2]
[340222313,1728855033457,-511.3867494,0.00010999,2]
[340222314,1728855033466,-260.1820195,0.00010999,2]
[340222315,1728855033475,-505.60522529,0.00010999,2]
[340222316,1728855033484,-515.3306008,0.00010999,2]
[340222317,1728855033493,-504.52572287,0.00010999,2]
[340222318,1728855033502,-512.55449325,0.00010999,2]
[340222319,1728855033512,-420.39451823,0.00010999,2]
[340222320,1728855033521,-506.43541411,0.00010999,2]
[340222321,1728855033530,-510.03669724,0.00010999,2]
[340222322,1728855033540,-474.37325809,0.00010999,2]
[340222323,1728855033550,-495.52445922,0.00010999,2]
[340222324,1728855033559,-513.62863991,0.00010999,2]
[340222325,1728855033569,-520.32142537,0.00010999,2]
[340222326,1728855033578,-500.0,0.00010999,2]
[340222327,1728855033587,-506.97216629,0.00010999,2]
[340222328,1728855033596,-506.62380869,0.00010999,2]
[340222329,1728855033605,-506.4332266,0.00010999,2]
[340222330,1728855033615,-513.11940688,0.00010999,2]
[340222331,1728855033624,-506.46434116,0.00010999,2]
[340222332,1728855033634,-518.32981196,0.00010999,2]
[340222333,1728855033643,-505.03352613,0.00010999,2]
[340222334,1728855033653,-279.82673546,0.00010999,2]
[340222335,1728855033663,-500.0,0.00010999,2]
[340222336,1728855033672,-513.67233378,0.00010999,2]
[340222337,1728855033681,-514.25908607,0.00010999,2]
[340222338,1728855033691,-505.86504459,0.00010999,2]
[340222339,1728855033700,-406.40204128,0.00010999,2]
[340222340,1728855033710,-506.66719741,0.00010999,2]
[340222341,1728855033719,-439.16058655,0.00010999,2]
[340222342,1728855033728,-508.58657586,0.00010999,2]
[340222343,1728855033737,-506.44717084,0.00010999,2]
[340222344,1728855033746,-504.71824098,0.00010999,2]
[340222345,1728855033755,-500.0,0.00010999,2]
[340222346,1728855033765,-6922.33892002,0.00010999,2]
[340222347,1728855033774,-500.0,0.00010999,2]
[340222348,1728855033783,-500.0,0.00010999,2]
[340222349,1728855033792,-547.26777074,0.00010999,2]
[340222350,1728855033801,-500.0,0.00010999,2]
[340222351,1728855033811,-500.0,0.00010999,2]
[340222352,1728855033820,-500.0,0.00010999,2]
[340222353,1728855033829,-500.0,0.00010999,2]
[340222354,1728855033838,-500.0,0.00010999,2]
[340222355,1728855033847,-204.38167201,0.00010999,2]
[340222356,1728855033856,-500.0,0.00010999,2]
[340222357,1728855033865,-500.0,0.00010999,2]
[340222358,1728855033874,-500.0,0.00010999,2]
[340222359,1728855033883,-500.0,0.00010999,2]
[340222360,1728855033892,-500.0,0.00010999,2]
[340222361,1728855033902,-308.67029346,0.00010999,2]
[340222362,1728855034025,-508.43425819,0.00010999,2]
[340222363,1728855034035,-500.0,0.00010999,2]
[340222364,1728855034044,-500.0,0.00010999,2]
[340222365,1728855034054,-500.0,0.00010999,2]
[340222366,1728855034062,-500.0,0.00010999,2]
[340222367,1728855034072,-500.0,0.00010999,2]
[340222368,1728855034082,-500.0,0.00010999,2]
[340222369,1728855034091,-583.25575306,0.00010999,2]
[340222370,1728855034100,-500.0,0.00010999,2]
[340222371,1728855034109,-500.0,0.00010999,2]
[340222372,1728855034118,-500.0,0.00010999,2]
[340222373,1728855034128,-500.0,0.00010999,2]
[340222374,1728855034137,-500.0,0.00010999,2]
[340222375,1728855034146,-500.0,0.00010999,2]
[340222376,1728855034156,-500.0,0.00010999,2]
[340222377,1728855034166,-500.0,0.00010999,2]
[340222378,1728855034175,-500.0,0.00010999,2]
[340222379,1728855034184,-500.0,0.00010999,2]
[340222380,1728855034193,-500.0,0.00010999,2]
[340222381,1728855034202,-500.0,0.00010999,2]
[340222382,1728855034211,-500.0,0.00010999,2]
[340222383,1728855034220,-500.0,0.00010999,2]
[340222384,1728855034230,-500.0,0.00010999,2]
[340222385,1728855034239,-471.68486035,0.00010999,2]
[340222386,1728855034249,-500.0,0.00010999,2]
[340222387,1728855034258,-500.0,0.00010999,2]
[340222388,1728855034267,-500.0,0.00010999,2]
[340222389,1728855034276,-500.0,0.00010999,2]
[340222390,1728855034285,-500.0,0.00010999,2]
[340222391,1728855034295,-500.0,0.00010999,2]
[340222392,1728855034304,-500.0,0.00010999,2]
[340222393,1728855034313,-500.0,0.00010999,2]
[340222394,1728855034322,-500.0,0.00010999,2]
[340222395,1728855034332,-500.0,0.00010999,2]
[340222396,1728855034341,-500.0,0.00010999,2]
[340222397,1728855034351,-616.22994432,0.00010999,2]
[340222398,1728855034361,-274.97313257,0.00010999,2]
[340222399,1728855034370,-500.0,0.00010999,2]
[340222400,1728855034380,-500.0,0.00010999,2]
[340222401,1728855034390,-500.0,0.00010999,2]
[340222402,1728855034400,-500.0,0.00010999,2]
[340222403,1728855034409,-500.0,0.00010999,2]
[340222404,1728855034419,-500.0,0.00010999,2]
[340222405,1728855034428,-305.60932379,0.00010999,2]
[340222406,1728855034438,-500.0,0.00010999,2]
[340222407,1728855034450,-500.0,0.00010999,2]
[340222408,1728855034460,-500.0,0.00010999,2]
[340222409,1728855034469,-410.42925466,0.00010999,2]
[340222410,1728855034479,-150.0,0.00010999,2]
[340222411,1728855034488,-150.0,0.00010999,2]
[340222412,1728855034498,-150.0,0.00010999,2]
[340222413,1728855034507,-150.0,0.00010999,2]
[340222414,1728855034517,-242.62135681,0.00010999,2]
[340222415,1728855034526,-461.61810077,0.00010999,2]
[340222416,1728855034536,-456.68,0.00010999,2]
[340222417,1728855034546,-500.0,0.00010999,2]
[340222418,1728855034555,-392.84,0.00010999,2]
[340222419,1728855034565,-285.94238125,0.00010999,2]
[340222420,1728855034575,-500.0,0.00010999,2]
[340222421,1728855034584,-500.0,0.00010999,2]
[340222422,1728855034594,-500.0,0.00010999,2]
[340222423,1728855034604,-500.0,0.00010999,2]
[340222424,1728855034613,-565.88702569,0.00010999,2]
[340222425,1728855034624,-500.0,0.00010999,2]
[340222426,1728855034634,-500.0,0.00010999,2]
[340222427,1728855034643,-432.09080807,0.00010999,2]
[340222428,1728855034653,-500.0,0.00010999,2]
[340222429,1728855034663,-500.0,0.00010999,2]
[340222430,1728855034673,-500.0,0.00010999,2]
[340222431,1728855034682,-500.0,0.00010999,2]
[340222432,1728855034692,-500.0,0.00010999,2]
[340222433,1728855034701,-500.0,0.00010999,2]
[340222434,1728855034711,-500.0,0.00010999,2]
[340222435,1728855034721,-500.0,0.00010999,2]
[340222436,1728855034731,-167.79731298,0.00010999,2]
[340222437,1728855034740,-626.18,0.00010999,2]
[340222438,1728855034750,-182.98,0.00010999,2]
[340222439,1728855034759,-305.69672987,0.00010999,2]
[340222440,1728855034768,-500.0,0.00010999,2]
[340222441,1728855034778,-500.0,0.00010999,2]
[340222442,1728855034787,-500.0,0.00010999,2]
[340222443,1728855034797,-494.2,0.00010999,2]
[340222444,1728855034806,-509.77852792,0.00010999,2]
[340222445,1728855034815,-500.0,0.00010999,2]
[340222446,1728855034826,-181.84998091,0.00010999,2]
[340222447,1728855034835,-500.0,0.00010999,2]
[340222448,1728855034845,-500.0,0.00010999,2]
[340222449,1728855034854,-500.0,0.00010999,2]
[340222450,1728855034864,-500.0,0.00010999,2]
[340222451,1728855034873,-506.41103839,0.00010999,2]
[340222452,1728855034883,-552.0,0.00010999,2]
[340222453,1728855034893,-500.0,0.00010999,2]
[340222454,1728855034902,-509.42130253,0.00010999,2]
[340222455,1728855034912,-500.0,0.00010999,2]
[340222456,1728855034923,-510.93302373,0.00010999,2]
[340222457,1728855034933,-462.75702635,0.00010999,2]
[340222458,1728855034943,-505.76067749,0.00010999,2]
[340222459,1728855034953,-634.53822567,0.00010999,2]
[340222460,1728855034962,-524.64260609,0.00010999,2]
[340222461,1728855034972,-511.0008692,0.00010999,2]
[340222462,1728855034981,-497.47215326,0.00010999,2]
[340222463,1728855034991,-500.0,0.00010999,2]
[340222464,1728855035003,-500.0,0.00010999,2]
[340222465,1728855035013,-510.34747845,0.00010999,2]
[340222466,1728855035023,-317.31278407,0.00010999,2]
[340222467,1728855035033,-510.02888105,0.00010999,2]
[340222468,1728855035043,-164.37369972,0.00010999,2]
[340222469,1728855035053,-231.13370988,0.00010999,2]
[340222470,1728855035062,-205.64429735,0.00010999,2]
[340222471,1728855035071,-15913.31915705,0.00011,2]
[340222472,1728855035088,-4560.7393,0.00011,2]
[340222473,1728855035099,-490.2607,0.00011,2]
[340222474,1728855035117,-500.0,0.00010998,2]
[340222475,1728855035126,-738.62357742,0.00011,2]
[340222476,1728855035137,-49595.44113001,0.00011,2]
[340222477,1728855035148,-807.9,0.00011,2]
[340222478,1728855035159,-665.94043464,0.00011,2]
[340222479,1728855035170,-1144.03705431,0.00011,2]
[340222480,1728855035181,-700.0,0.00011,2]
[340222481,1728855035192,-7472.38296907,0.00011,2]
[340222483,1728855038043,-500.0,0.00010873,2]
[340222484,1728855038052,-2546.19315,0.00011,2]
[340222485,1728855038063,-2659.56931745,0.00011,2]
[340222486,1728855038080,-5303.35094036,0.00011,2]
[340222487,1728855038091,-6567.84264222,0.00011,2]
[340222488,1728855038194,-1869.657798,0.00011,2]
[340222492,1728855039906,-1200.0,0.00011,2]
[340222493,1728855040074,-1272.4555824,0.00011,2]
[340222494,1728855040085,-944.166191,0.00011,2]
[340222495,1728855040135,-32290.0158,0.00011,2]
[340222499,1728855042940,-3461.16946001,0.00010999,2]
[340222500,1728855042951,-880.83373204,0.00011,2]
[340222501,1728855042962,-526.83208673,0.00011,2]
[340222502,1728855042995,-489.64204138,0.00010999,2]
[340222503,1728855043006,-312.42136021,0.00011,2]
[340222504,1728855043019,-3079.79298689,0.00011,2]
[340222505,1728855043032,-3918.7910805,0.00011,2]
[340222506,1728855045904,-866.61,0.00010959,2]
[340222507,1728855045915,-1207.69745586,0.00011,2]
[340222508,1728855045927,-432.77116256,0.00011,2]
[340222509,1728855045940,-36145.24384162,0.00011,2]
[340222510,1728855045951,-34253.45091569,0.00011,2]
[340222511,1728855045962,-251.201,0.00011,2]
[340222512,1728855046075,-5800.7172,0.00011,2]
[340222513,1728855046086,-4553.8190213,0.00011,2]
[340222514,1728855046134,-346.76974357,0.00011,2]
[340222515,1728855067435,2318.006,0.00010214,2]
[340222516,1728855072435,300.0,0.000103,3]
[340222517,1728855074539,600.0,0.000104,3]
[340222518,1728855076849,900.0,0.000105,3]
[340222519,1728855078946,1200.0,0.000106,3]
[340222520,1728855081091,1500.0,0.000107,3]
[340222521,1728855083184,300.0,0.000108,3]
[340222522,1728855085300,300.0,0.000109,3]
[340222523,1728855169900,533.22,9.95e-05,2]
[340222525,1728855394455,550.0,0.0001,2]
[340222531,1728855827451,549.68,9.549e-05,2]
[340222532,1728855912865,150.8509707,9.888e-05,2]
[340222542,1728856127176,188.13,9.885e-05,2]
[340222546,1728856232058,-150.0,0.00010724,2]
[340222547,1728856232069,-150.0,0.00010725,2]
[340222548,1728856232078,-150.0,0.00010731,2]
[340222549,1728856232088,-150.0,0.00010734,2]
[340222550,1728856232098,-1615.45501744,0.00010737,2]
[340222551,1728856232110,-223.52229279,0.00010737,2]
[340222552,1728856232119,-150.0,0.00010737,2]
[340222553,1728856232130,-150.0,0.00010738,2]
[340222554,1728856232139,-150.0,0.00010739,2]
[340222555,1728856232148,-194.9515538,0.00010746,2]
[340222556,1728856232158,-150.0,0.00010748,2]
[340222557,1728856232167,-142.87872965,0.00010749,2]
[340222558,1728856232179,-7.12127035,0.00010749,2]
[340222559,1728856232188,-150.0,0.00010752,2]
[340222560,1728856232199,-150.0,0.00010755,2]
[340222561,1728856232210,-150.0,0.00010758,2]
[340222562,1728856232220,-150.0,0.00010758,2]
[340222563,1728856232229,-150.0,0.00010758,2]
[340222564,1728856232239,-150.0,0.00010758,2]
[340222565,1728856232249,-150.0,0.00010762,2]
[340222566,1728856232259,-127.12759108,0.00010768,2]
[340222567,1728856232271,-22.87240892,0.00010768,2]
[340222568,1728856232283,-150.0,0.00010774,2]
[340222569,1728856232292,-150.0,0.00010779,2]
[340222570,1728856232301,-150.0,0.00010779,2]
[340222571,1728856232311,-157.079,0.0001078,2]
[340222572,1728856232320,-150.0,0.0001078,2]
[340222573,1728856232330,-150.0,0.0001078,2]
[340222574,1728856232339,-150.0,0.00010783,2]
[340222575,1728856232349,-150.0,0.00010784,2]
[340222576,1728856232358,-127.08487625,0.00010785,2]
[340222577,1728856232371,-22.91512375,0.00010785,2]
[340222578,1728856232380,-150.0,0.00010793,2]
[340222579,1728856232390,-150.0,0.00010801,2]
[340222580,1728856232399,-150.0,0.00010801,2]
[340222581,1728856232409,-112.99032625,0.00010802,2]
[340222582,1728856232420,-37.00967375,0.00010802,2]
[340222583,1728856232430,-434.95946363,0.00010803,2]
[340222584,1728856232442,-823.216005,0.00010803,2]
[340222585,1728856232454,-802.409257,0.00010803,2]
[340222586,1728856232470,-807.44,0.00010803,2]
[340222587,1728856232482,-875.5,0.00010803,2]
[340222588,1728856232494,-654.85,0.00010803,2]
[340222589,1728856232504,-372.954,0.00010803,2]
[340222590,1728856232515,-1182.76130975,0.00010803,2]
[340222591,1728856232526,-5457.64996462,0.00010803,2]
[340222592,1728856232535,-150.0,0.00010821,2]
[340222593,1728856232544,-259.23482857,0.00010826,2]
[340222594,1728856232554,-45.09484764,0.00010827,2]
[340222595,1728856232567,-104.90515236,0.00010827,2]
[340222596,1728856232576,-150.0,0.0001083,2]
[340222597,1728856232586,-150.0,0.0001083,2]
[340222598,1728856232595,-150.0,0.00010831,2]
[340222599,1728856232605,-150.0,0.00010833,2]
[340222600,1728856232614,-150.0,0.00010837,2]
[340222601,1728856232624,-150.0,0.00010838,2]
[340222602,1728856232633,-150.0,0.00010843,2]
[340222603,1728856232643,-150.0,0.00010845,2]
[340222604,1728856232652,-150.0,0.0001085,2]
[340222605,1728856232662,-150.0,0.0001085,2]
[340222606,1728856232671,-150.0,0.00010856,2]
[340222607,1728856232680,-150.0,0.00010856,2]
[340222608,1728856232690,-150.0,0.00010859,2]
[340222609,1728856232700,-150.0,0.0001086,2]
[340222610,1728856232711,-150.0,0.00010868,2]
[340222611,1728856232720,-150.0,0.00010869,2]
[340222612,1728856232730,-150.0,0.00010872,2]
[340222613,1728856232739,-254.07630985,0.00010875,2]
[340222614,1728856232748,-150.0,0.00010875,2]
[340222615,1728856232758,-150.0,0.00010876,2]
[340222616,1728856232767,-150.0,0.00010877,2]
[340222617,1728856232776,-150.0,0.00010883,2]
[340222618,1728856232786,-150.0,0.00010887,2]
[340222619,1728856232795,-150.0,0.00010891,2]
[340222620,1728856232804,-150.0,0.00010891,2]
[340222621,1728856232814,-150.0,0.00010893,2]
[340222622,1728856232823,-150.0,0.00010895,2]
[340222623,1728856232832,-150.0,0.00010899,2]
[340222624,1728856232842,-150.0,0.00010899,2]
[340222625,1728856232976,-158.32920976,0.000109,2]
[340222626,1728856232987,-379.33103384,0.000109,2]
[340222627,1728856232997,-1372.30722541,0.000109,2]
[340222628,1728856233006,-1856.56978195,0.000109,2]
[340222629,1728856233016,-150.0,0.00010902,2]
[340222630,1728856233026,-150.0,0.00010913,2]
[340222631,1728856233037,-150.0,0.00010915,2]
[340222632,1728856233046,-150.0,0.00010922,2]
[340222633,1728856233057,-150.0,0.00010923,2]
[340222634,1728856233067,-150.0,0.0001093,2]
[340222635,1728856233077,-150.0,0.00010933,2]
[340222636,1728856233087,-150.0,0.00010944,2]
[340222637,1728856233096,-1000.0,0.00010945,2]
[340222638,1728856233106,-468.5016,0.00010945,2]
[340222639,1728856233116,-150.0,0.00010946,2]
[340222640,1728856233126,-150.0,0.00010947,2]
[340222641,1728856233136,-150.0,0.00010948,2]
[340222642,1728856233147,-150.0,0.0001095,2]
[340222643,1728856233158,-150.0,0.00010951,2]
[340222644,1728856233168,-150.0,0.00010952,2]
[340222645,1728856233179,-150.0,0.00010953,2]
[340222646,1728856233189,-150.0,0.00010954,2]
[340222647,1728856233199,-150.0,0.00010956,2]
[340222648,1728856233211,-163.61,0.00010959,2]
[340222649,1728856233221,-160.31,0.00010959,2]
[340222650,1728856233230,-150.0,0.00010964,2]
[340222651,1728856233240,-150.0,0.00010972,2]
[340222652,1728856233249,-500.0,0.00010973,2]
[340222653,1728856233259,-505.06779306,0.00010973,2]
[340222654,1728856233269,-226.02918517,0.00010973,2]
[340222655,1728856233279,-150.0,0.0001098,2]
[340222656,1728856233289,-150.0,0.00010982,2]
[340222657,1728856233298,-150.0,0.00010985,2]
[340222658,1728856233308,-150.0,0.00010986,2]
[340222659,1728856233317,-150.0,0.00010989,2]
[340222660,1728856233326,-150.0,0.0001099,2]
[340222661,1728856233335,-150.0,0.00010992,2]
[340222662,1728856233344,-150.0,0.00010994,2]
[340222663,1728856233353,-877.7,0.00010997,2]
[340222664,1728856233362,-3461.16946,0.00010999,2]
[340222665,1728856233371,-500.0,0.00010999,2]
[340222666,1728856233381,-500.0,0.00010999,2]
[340222667,1728856233391,-500.0,0.00010999,2]
[340222668,1728856233400,-500.0,0.00010999,2]
[340222669,1728856233410,-500.0,0.00010999,2]
[340222670,1728856233419,-500.0,0.00010999,2]
[340222671,1728856233428,-500.0,0.00010999,2]
[340222672,1728856233437,-500.0,0.00010999,2]
[340222673,1728856233447,-336.14609082,0.00010999,2]
[340222674,1728856233458,-500.0,0.00010999,2]
[340222675,1728856233467,-500.0,0.00010999,2]
[340222676,1728856233477,-500.0,0.00010999,2]
[340222677,1728856233486,-500.0,0.00010999,2]
[340222678,1728856233495,-500.0,0.00010999,2]
[340222679,1728856233505,-169702.16218808,0.00011,2]
[340222680,1728856233517,-513147.05861474,0.00011,2]
[340222681,1728856233528,-1157.66053093,0.00011,2]
[340222682,1728856233539,-1709.87048133,0.00011,2]
[340222718,1728856238302,-586016.75595525,0.00011,2]
[340222719,1728856238313,-1469886.60164752,0.00011,2]
[340222720,1728856238322,-150.0,0.00011,2]
[340222721,1728856238332,-26709.81849865,0.00011,2]
[340222722,1728856238343,-2633250.04053125,0.00011,2]
[340222723,1728856238354,-5545525.47883357,0.00011,2]
[340222724,1728856238363,-790828.31747114,0.00011,2]
[340222725,1728856238373,-157188.7938437,0.00011144,2]
[340222726,1728856238383,-13402.0445045,0.00011152,2]
[340222727,1728856238393,-225.599967,0.0001116,2]
[340222728,1728856238403,-7831.997973,0.0001116,2]
[340222729,1728856238413,-200.65,0.00011271,2]
[340222730,1728856238423,-250.0,0.000114,2]
[340222731,1728856238433,-250.0,0.00011448,2]
[340222732,1728856238443,-309.82,0.00011453,2]
[340222733,1728856238453,-2751.0,0.00011507,2]
[340222734,1728856238463,-1000.0,0.00011594,2]
[340222735,1728856238472,-549.68,0.00011813,2]
[340222736,1728856238482,-403.86819867,0.000119,2]
[340222737,1728856238491,-600.0,0.00012,2]
[340222738,1728856238501,-309.82,0.00012026,2]
[340222739,1728856238510,-180.0,0.00012055,2]
[340222740,1728856238520,-192.12,0.000121,2]
[340222741,1728856238529,-151.0,0.00012329,2]
[340222742,1728856238539,-557.020589,0.00012329,2]
[340222743,1728856238548,-557.020589,0.00012329,2]
[340222744,1728856238557,-151.0,0.00012329,2]
[340222745,1728856238566,-1379.949631,0.00012329,2]
[340222746,1728856238575,-1379.949631,0.00012329,2]
[340222748,1728856238584,-1372.30722541,0.0001235,2]
[340222750,1728856238594,-379.33103382,0.000124,2]
[340222752,1728856238603,-167.0,0.00012445,2]
[340222754,1728856238613,-200.65,0.00012523,2]
[340222756,1728856238622,-309.82,0.00012598,2]
[340222758,1728856238632,-167.0,0.00012855,2]
[340222760,1728856238642,-1000.0,0.00013044,2]
[340222762,1728856238652,-309.82,0.00013171,2]
[340222764,1728856238661,-167.0,0.00013266,2]
[340222765,1728856238670,-167.0,0.00013677,2]
[340222766,1728856238679,-500.0,0.00013698,2]
[340222767,1728856238689,-500.0,0.00013698,2]
[340222768,1728856238699,-500.0,0.00013698,2]
[340222769,1728856238708,-500.0,0.00013698,2]
[340222770,1728856238719,-500.0,0.00013698,2]
[340222771,1728856238728,-500.0,0.00013698,2]
[340222772,1728856238738,-500.0,0.00013698,2]
[340222773,1728856238748,-340.84005253,0.00013698,2]
[340222774,1728856238757,-500.0,0.00013699,2]
[340222775,1728856238769,-3284.88,0.00013699,2]
[340222776,1728856238782,-200.0,0.00013699,2]
[340222777,1728856238793,-309.82,0.00013744,2]
[340222778,1728856238805,-200.65,0.00013775,2]
[340222779,1728856238816,-181.96,0.000138,2]
[340222780,1728856238827,-151.0,0.000138,2]
[340222781,1728856238838,-557.020589,0.000138,2]
[340222782,1728856238848,-557.020589,0.000138,2]
[340222783,1728856238858,-264654.441971,0.000138,3]
[340222784,1728856238868,-151.0,0.000138,2]
[340222785,1728856238879,-1372.30722541,0.000138,2]
[340222786,1728856238891,-188.13,0.00013839,2]
[340222787,1728856238902,-443620.838776,0.000139,3]
[340222788,1728856238912,-379.33103382,0.000139,2]
[340222789,1728856238922,-1379.949631,0.000139,2]
[340222790,1728856238935,-1379.949631,0.000139,2]
[340222791,1728856238947,-650.0,0.00014,2]
[340222792,1728856238959,-549.68,0.00014077,2]
[340222793,1728856238972,-167.0,0.00014088,2]
[340222794,1728856238984,-1000.0,0.00014493,2]
[340222795,1728856238995,-167.0,0.00014499,2]
[340222796,1728856239006,-200.65,0.00015027,2]
[340222797,1728856239017,-300.0,0.00015068,2]
[340222798,1728856239029,-3500.02,0.0001531,2]
[340222799,1728856239040,-29999.99,0.0001531,2]
[340222800,1728856239051,-15375.63,0.0001531,2]
[340222801,1728856239062,-403.86819867,0.00015733,2]
[340222802,1728856239073,-1000.0,0.00015942,2]
[340222803,1728856239083,-700.0,0.00016,2]
[340222804,1728856239094,-549.68,0.00016341,2]
[340222805,1728856239105,-155.38,0.00016438,2]
[340222806,1728856239116,-150.0,0.00016438,2]
[340222807,1728856239127,-300.0,0.00016438,2]
[340222808,1728856239138,-150.0,0.00016871,2]
[340222809,1728856239148,-150.0,0.00017304,2]
[340222810,1728856239159,-1000.0,0.00017391,2]
[340222811,1728856239170,-320.29,0.000177,7]
[340222812,1728856239182,-150.0,0.00017736,2]
[340222813,1728856239193,-750.0,0.00018,2]
[340222814,1728856239204,-192.12,0.00018151,2]
[340222815,1728856239215,-150.0,0.00018169,2]
[340222816,1728856239225,-150.0,0.00018601,2]
[340222817,1728856239236,-549.68,0.00018604,2]
[340222818,1728856239248,-1467.0,0.000187,2]
[340222819,1728856239258,-150.0,0.00019034,2]
[340222820,1728856239269,-151.0,0.00019073,2]
[340222821,1728856239278,-150.0,0.00019466,2]
[340222822,1728856239288,-403.86819867,0.00019567,2]
[340222823,1728856239297,-150.0,0.00019899,2]
[340222824,1728856239308,-800.0,0.0002,2]
[340222825,1728856239318,-150.0,0.00020332,2]
[340222826,1728856239329,-331.0,0.000205,2]
[340222827,1728856239339,-1059.0,0.000205,2]